bitfinex-derivatives/quotes_SOLF0:USTF0_20241216
["timestamp","ask_amount","ask_price","bid_price","bid_amount"]
[1734368711567,3.1158,219.17,219.13,2.2815]
[1734368712072,3.1158,219.17,219.12,2.2817]
[1734368712073,5.397,219.17,219.12,2.2817]
[1734368712282,3.1158,219.17,219.05,13.23576771]
[1734368712672,5.3971,219.17,219.11,2.2817]
[1734368712981,5.3971,219.17,219.05,13.23576771]
[1734368713777,3.1158,219.17,219.05,13.23576771]
[1734368713979,2.2815,219.14,219.05,13.23576771]
[1734368714175,2.48,219.14,219.03,1.5892]
[1734368714486,2.2817,219.12,219.07,2.2821]
[1734368714682,15.71576771,219.14,219.03,1.5892]
[1734368715583,2.2816,219.13,219.08,2.2821]
[1734368716083,2.2818,219.11,219.02,16.29266771]
[1734368716273,15.71576771,219.14,219.02,14.81226771]
[1734368716477,15.71576771,219.14,219.01,5.46406063]
[1734368716783,2.282,219.09,219.04,2.2825]
[1734368717280,4.762,219.09,219.04,2.2825]
[1734368717683,2.48,219.09,219.05,2.2824]
[1734368719078,2.48,219.09,218.96,13.23576771]
[1734368719277,13.23576771,219.08,218.94,2.48]
[1734368719681,2.2827,219.03,218.95,5.48883024]
[1734368719987,4.7627,219.03,218.95,5.48883024]
[1734368720183,2.48,219.03,218.93,13.23576771]
[1734368720883,4.7627,219.03,218.97,2.2832]
[1734368721284,2.48,219.05,219.01,2.2827]
[1734368721489,2.48,219.05,218.99,13.23576771]
[1734368721686,3.2341,219.09,218.99,13.23576771]
[1734368721883,2.48,219.08,218.99,13.23576771]
[1734368722089,2.48,219.08,218.96,1.5617]
[1734368722384,2.48,219.08,218.96,14.79746771]
[1734368722587,15.71576771,219.08,218.96,14.79746771]
[1734368722792,15.71576771,219.08,218.95,2.48]
[1734368722992,13.23576771,219.05,218.93,18.74871504]
[1734368723789,2.2829,219.01,218.91,1.4925]
[1734368724088,2.48,219.08,218.91,1.4925]
[1734368724089,4.763,219.0,218.95,2.2834]
[1734368724587,2.48,219.0,218.93,2.2836]
[1734368724784,2.48,219.0,218.89,13.23576771]
[1734368725385,2.2833,218.97,218.86,16.29256771]
[1734368725592,2.2833,218.97,218.86,18.77256771]
[1734368725794,13.23576771,218.99,218.86,18.77256771]
[1734368725993,13.23576771,218.99,218.86,16.29256771]
[1734368726293,13.23576771,218.99,218.88,5.6083737]
[1734368726592,2.48,219.0,218.88,5.6083737]
[1734368726785,5.5474,219.01,218.89,2.48]
[1734368727389,7.8303,219.01,218.89,2.48]
[1734368727691,2.48,219.0,218.89,2.48]
[1734368727891,2.48,219.0,218.97,2.2832]
[1734368728595,2.48,219.0,218.96,2.2833]
[1734368728791,2.48,219.0,218.89,3.9853]
[1734368729392,1.5799,219.04,218.89,3.9853]
[1734368729590,2.48,219.03,219.0,2.2828]
[1734368729794,1.5107,219.05,218.92,21.16060938]
[1734368729986,2.48,219.05,218.93,2.48]
[1734368730195,2.48,219.05,219.02,2.2826]
[1734368730892,2.48,219.05,218.93,2.48]
[1734368732194,2.2826,219.03,218.89,3.9853]
[1734368732495,2.48,219.05,218.89,3.9853]
[1734368732697,21.16060938,219.03,218.95,2.2834]
[1734368732998,2.2827,219.02,218.95,2.2834]
[1734368733195,21.16060938,219.03,218.95,2.2834]
[1734368733497,21.16060938,219.03,218.92,2.2838]
[1734368733695,3.1299,219.02,218.88,5.6083737]
[1734368734093,2.283,219.0,218.94,2.2836]
[1734368734391,2.48,218.99,218.88,5.6083737]
[1734368734692,2.48,218.99,218.83,2.48]
[1734368734693,23.64060938,218.99,218.83,2.48]
[1734368735199,2.2834,218.96,218.87,2.2842]
[1734368735389,2.2834,218.96,218.8,4.7291]
[1734368735390,23.64060938,218.99,218.8,4.7291]
[1734368735591,2.48,218.98,218.85,5.53921562]
[1734368735796,4.7632,218.98,218.91,2.2838]
[1734368736596,2.2833,218.97,218.91,2.2838]
[1734368737901,2.2833,218.97,218.9,2.284]
[1734368738194,4.7632,218.98,218.85,5.53921562]
[1734368738391,2.2832,218.98,218.88,2.2841]
[1734368738591,2.48,218.97,218.85,5.53921562]
[1734368740596,4.763,218.97,218.85,5.53921562]
[1734368740994,2.48,218.97,218.85,5.53921562]
[1734368742001,2.48,218.97,218.92,2.2835]
[1734368743100,2.48,218.97,218.85,5.53921562]
[1734368743303,21.16060938,218.95,218.85,5.53921562]
[1734368743493,21.16060938,218.95,218.8,4.7291]
[1734368743694,2.2836,218.92,218.8,4.7291]
[1734368743905,2.48,218.91,218.84,5.50605444]
[1734368744400,2.48,218.91,218.87,2.284]
[1734368744601,21.16060938,218.95,218.84,5.50605444]
[1734368744796,2.48,218.94,218.84,5.50605444]
[1734368745001,2.48,218.97,218.94,2.2832]
[1734368745502,2.48,218.97,218.96,2.2831]
[1734368746098,22.76140938,219.01,218.96,2.2831]
[1734368746298,2.48,219.0,218.97,2.283]
[1734368746602,1.6008,219.01,218.9,2.48]
[1734368746801,1.6008,219.01,218.95,2.2832]
[1734368747107,1.6008,219.01,218.9,2.48]
[1734368747501,1.6008,219.01,218.97,2.2829]
[1734368748299,18.8323871,219.02,218.97,2.2829]
[1734368749403,21.1148871,219.02,218.97,2.2829]
[1734368750706,18.8323871,219.02,218.98,2.2829]
[1734368751308,18.8323871,219.02,218.9,2.48]
[1734368751309,15.7024871,219.02,218.9,2.48]
[1734368753509,15.7024871,219.02,218.93,2.2834]
[1734368753706,15.7024871,219.02,218.89,14.8096871]
[1734368754009,13.2224871,218.99,218.93,2.2834]
[1734368754210,15.7024871,218.99,218.93,2.2834]
[1734368754412,17.9852871,218.99,218.89,1.5872]
[1734368755010,17.9852871,218.99,218.92,2.2835]
[1734368755209,17.9852871,218.99,218.89,1.5872]
[1734368755915,17.9852871,218.99,218.94,2.2833]
[1734368756808,2.48,218.99,218.89,14.8096871]
[1734368757110,2.48,219.03,218.92,13.2224871]
[1734368757311,15.7024871,219.05,219.01,2.2825]
[1734368757904,254.6901471,219.06,218.95,13.2224871]
[1734368758104,2.48,219.05,218.95,13.2224871]
[1734368758911,2.48,219.05,218.98,2.2829]
[1734368759111,2.48,219.05,218.93,2.48]
[1734368760613,2.48,219.05,219.03,2.2823]
[1734368761111,54.40249393,219.08,219.04,2.2822]
[1734368761317,38.24390683,219.08,219.01,13.2224871]
[1734368761521,254.6901471,219.1,219.02,2.48]
[1734368761812,254.6901471,219.15,219.1,2.2816]
[1734368762014,254.6901471,219.15,219.03,3.9674]
[1734368762316,257.1701471,219.15,219.03,3.9674]
[1734368762815,2.48,219.15,219.03,3.9674]
[1734368763020,2.48,219.15,219.11,2.2815]
[1734368763314,2.48,219.15,219.03,3.9674]
[1734368763513,2.48,219.15,219.03,1.4874]
[1734368763819,13.2224871,219.13,219.02,1.5776]
[1734368764410,15.5039871,219.13,219.08,2.2819]
[1734368764715,15.5039871,219.13,219.02,1.5776]
[1734368764922,15.5039871,219.13,219.07,2.282]
[1734368765321,13.2224871,219.1,219.02,1.5776]
[1734368765517,13.2224871,219.1,219.0,2.48]
[1734368766021,2.2819,219.08,219.02,2.2825]
[1734368766217,15.7024871,219.1,218.98,2.48]
[1734368766417,15.7024871,219.1,218.96,4.691]
[1734368766620,2.2819,219.08,218.97,2.48]
[1734368766917,13.2224871,219.07,218.97,2.48]
[1734368767216,13.2224871,219.07,219.02,2.2824]
[1734368768121,15.7024871,219.1,218.97,15.7024871]
[1734368768719,2.2818,219.09,219.03,2.2823]
[1734368769422,15.7024871,219.1,218.97,15.7024871]
[1734368770218,2.2818,219.09,218.97,15.7024871]
[1734368770418,15.7024871,219.1,218.97,15.7024871]
[1734368770623,17.9841871,219.1,218.97,15.7024871]
[1734368771218,2.2818,219.09,218.97,15.7024871]
[1734368771823,15.7024871,219.1,218.97,15.7024871]
[1734368771824,2.2819,219.08,218.97,15.7024871]
[1734368772221,15.7024871,219.1,218.97,15.7024871]
[1734368772422,2.282,219.07,218.97,15.7024871]
[1734368772921,15.7024871,219.1,218.97,15.7024871]
[1734368773423,15.7024871,219.1,219.04,2.2822]
[1734368773629,2.2818,219.09,219.04,2.2822]
[1734368774527,15.7024871,219.1,219.02,2.2824]
[1734368774528,2.2819,219.08,219.02,2.2824]
[1734368775030,15.7024871,219.1,219.02,2.2824]
[1734368775226,1.4644,219.09,219.02,2.2824]
[1734368775628,2.2821,219.07,219.02,2.2824]
[1734368776924,4.579,219.09,218.96,3.0886]
[1734368777124,13.2224871,219.04,218.73,379.0]
[1734368777323,13.2224871,219.01,218.88,13.2224871]
[1734368777626,15.7024871,219.01,218.88,15.7024871]
[1734368778020,15.7024871,219.01,218.91,2.2836]
[1734368778021,17.9850871,219.01,218.91,2.2836]
[1734368778224,15.7024871,219.01,218.88,15.7024871]
[1734368778627,2.48,219.01,218.91,13.2224871]
[1734368778927,2.48,219.05,218.94,13.2224871]
[1734368780736,2.48,219.06,218.94,13.2224871]
[1734368780933,4.7621,219.06,219.02,2.2824]
[1734368781233,2.48,219.06,218.94,13.2224871]
[1734368781432,13.2224871,219.04,218.96,2.2831]
[1734368781734,2.48,219.06,218.85,17.9213871]
[1734368781735,13.2224871,218.98,218.85,17.9213871]
[1734368781928,13.2224871,218.98,218.86,2.48]
[1734368782127,2.2832,218.96,218.86,2.48]
[1734368782934,2.2832,218.96,218.92,2.2835]
[1734368783129,2.283,218.97,218.85,20.4013871]
[1734368783731,13.2224871,218.98,218.85,20.4013871]
[1734368784632,13.2224871,218.98,218.88,2.2839]
[1734368784934,13.2224871,218.98,218.85,20.4013871]
[1734368785933,13.2224871,218.98,218.95,2.2832]
[1734368786133,13.2224871,218.98,218.85,20.4013871]
[1734368786535,13.2224871,218.98,218.95,2.2832]
[1734368787535,2.48,218.99,218.9,2.48]
[1734368787736,254.6901471,219.08,218.9,2.48]
[1734368787737,13.2224871,219.04,218.9,2.48]
[1734368787930,13.2224871,219.04,218.94,2.2832]
[1734368788231,4.7624,219.03,218.92,2.48]
[1734368788434,2.2824,219.03,218.92,2.48]
[1734368788737,17.9847871,219.04,219.0,2.2827]
[1734368788939,17.9847871,219.04,218.92,2.48]
[1734368789438,15.7024871,219.04,218.92,2.48]
[1734368789633,2.48,219.06,218.94,13.2224871]
[1734368789839,2.48,219.06,219.05,2.2822]
[1734368790436,4.7621,219.06,218.97,2.48]
[1734368790638,2.48,219.06,218.97,2.48]
[1734368790836,2.48,219.06,218.93,7.0643]
[1734368791335,13.2224871,219.04,218.93,7.0643]
[1734368791739,2.2824,219.03,218.96,2.2831]
[1734368792041,2.48,219.06,218.93,5.59204594]
[1734368792042,13.2224871,219.01,218.93,5.59204594]
[1734368792242,15.7024871,219.01,218.93,5.59204594]
[1734368793138,15.7024871,219.01,218.97,2.2829]
[1734368793344,15.7024871,219.01,218.93,5.59204594]
[1734368793744,17.9850871,219.01,218.96,2.2831]
[1734368794346,15.7024871,219.01,218.97,2.283]
[1734368795039,15.7024871,219.01,218.89,2.48]
[1734368795040,15.7024871,219.01,218.98,2.2829]
[1734368795241,13.2224871,219.04,218.92,5.35840163]
[1734368795644,13.2224871,219.04,219.02,2.2825]
[1734368796243,13.2224871,219.04,219.01,2.2826]
[1734368797437,13.2224871,219.04,219.02,2.2824]
[1734368797637,13.2224871,219.04,218.94,2.48]
[1734368798036,2.48,219.05,219.04,2.2823]
[1734368799047,4.579,219.09,218.96,13.2224871]
[1734368799343,1.4644,219.09,218.99,13.2224871]
[1734368799546,1.4644,219.09,218.99,15.7024871]
[1734368799849,1.4644,219.09,219.08,2.2819]
[1734368800243,13.2224871,219.13,218.99,15.7024871]
[1734368800441,15.7024871,219.13,219.1,2.2817]
[1734368800845,269.4954342,219.16,219.04,2.48]
[1734368801041,256.2729471,219.16,219.05,13.2224871]
[1734368801243,1.5828,219.16,219.05,13.2224871]
[1734368801548,13.2224871,219.19,219.16,2.281]
[1734368801945,254.6901471,219.21,219.1,2.48]
[1734368802145,254.6901471,219.21,219.11,13.2224871]
[1734368802543,2.48,219.24,219.11,13.2224871]
[1734368802747,2.48,219.24,219.14,2.2812]
[1734368802947,2.48,219.24,219.11,13.2224871]
[1734368803242,13.2224871,219.22,219.15,2.2811]
[1734368803445,2.2805,219.21,219.1,2.48]
[1734368803650,13.2224871,219.22,219.1,2.48]
[1734368804151,2.2806,219.2,219.1,2.48]
[1734368804840,2.2806,219.2,219.15,2.2811]
[1734368805044,2.2806,219.2,219.1,2.48]
[1734368805045,15.7024871,219.19,219.1,2.48]
[1734368805244,15.7024871,219.19,219.15,2.2811]
[1734368805445,15.7024871,219.19,219.1,2.48]
[1734368805645,2.48,219.19,219.1,2.48]
[1734368805848,2.48,219.19,219.15,2.2811]
[1734368806645,13.2224871,219.22,219.1,2.48]
[1734368806951,13.2224871,219.22,219.11,13.2224871]
[1734368806952,2.48,219.21,219.11,13.2224871]
[1734368807445,2.48,219.21,219.17,2.2809]
[1734368808048,2.48,219.21,219.1,2.48]
[1734368808242,2.48,219.21,219.16,2.281]
[1734368808852,2.48,219.21,219.18,2.2808]
[1734368810849,2.48,219.21,219.1,2.48]
[1734368811552,2.48,219.21,219.17,2.2809]
[1734368811854,2.48,219.21,219.1,2.48]
[1734368812053,13.2224871,219.22,219.18,2.2808]
[1734368812752,13.2224871,219.22,219.11,13.2224871]
[1734368812951,13.2224871,219.25,219.11,13.2224871]
[1734368813250,2.28,219.26,219.14,13.2224871]
[1734368813445,2.48,219.27,219.15,2.48]
[1734368813653,14.7823871,219.28,219.15,2.48]
[1734368814053,17.0622871,219.28,219.23,2.2803]
[1734368815455,14.7823871,219.28,219.17,13.2224871]
[1734368816046,14.7823871,219.28,219.24,2.2801]
[1734368816353,14.7823871,219.28,219.17,13.2224871]
[1734368816550,16.3905871,219.31,219.2,13.2224871]
[1734368816749,2.48,219.32,219.2,15.7024871]
[1734368816949,2.48,219.33,219.2,15.7024871]
[1734368817652,15.7024871,219.34,219.23,13.2224871]
[1734368818561,15.7024871,219.34,219.29,2.2796]
[1734368818759,13.2224871,219.31,219.2,18.81246988]
[1734368819150,15.5019871,219.31,219.26,2.28]
[1734368819459,13.2224871,219.31,219.2,5.58998278]
[1734368820456,13.2224871,219.28,219.16,1.5031]
[1734368820756,2.48,219.27,219.13,1.5588]
[1734368820955,5.5977,219.27,219.13,1.5588]
[1734368821259,2.2802,219.24,219.19,2.2807]
[1734368821559,2.2802,219.24,219.13,4.0388]
[1734368822153,2.2802,219.24,219.16,5.56263688]
[1734368822355,7.1323,219.27,219.13,1.5588]
[1734368822554,2.2804,219.22,219.13,1.5588]
[1734368822751,4.0992,219.27,219.13,1.5588]
[1734368822959,4.0992,219.27,219.22,2.2804]
[1734368823156,4.0992,219.27,219.17,2.48]
[1734368823354,17.3216871,219.27,219.15,18.77075401]
[1734368823554,17.3216871,219.27,219.15,5.54826691]
[1734368824766,17.3216871,219.27,219.15,18.77075401]
[1734368824963,257.7367471,219.3,219.18,13.2224871]
[1734368825164,260.0163471,219.3,219.21,2.2805]
[1734368825362,260.0163471,219.3,219.18,15.7024871]
[1734368825562,3.0466,219.3,219.18,15.7024871]
[1734368826366,3.0466,219.3,219.26,2.2799]
[1734368826557,2.2794,219.33,219.21,13.2224871]
[1734368826760,2.48,219.32,219.21,13.2224871]
[1734368826962,2.48,219.33,219.29,2.2796]
[1734368827161,2.48,219.33,219.24,13.2224871]
[1734368827569,2.48,219.33,219.21,13.2224871]
[1734368828364,4.7593,219.33,219.21,13.2224871]
[1734368828965,4.7593,219.33,219.28,2.2797]
[1734368829462,2.48,219.33,219.3,2.2795]
[1734368829668,13.2224871,219.38,219.27,13.2224871]
[1734368829862,2.48,219.37,219.27,13.2224871]
[1734368830061,4.7588,219.38,219.34,2.2792]
[1734368830266,2.48,219.38,219.27,13.2224871]
[1734368830465,15.7024871,219.38,219.27,13.2224871]
[1734368830769,13.2224871,219.35,219.26,5.46500058]
[1734368831169,13.2224871,219.35,219.28,2.2798]
[1734368831170,2.2792,219.34,219.28,2.2798]
[1734368831371,2.48,219.33,219.28,2.2798]
[1734368832065,2.2796,219.31,219.22,3.9444]
[1734368832265,2.2796,219.31,219.22,2.48]
[1734368832571,254.6901471,219.31,219.19,4.0167]
[1734368832773,2.2796,219.3,219.24,2.2801]
[1734368832970,2.2796,219.3,219.19,4.0167]
[1734368833364,2.2796,219.3,219.19,1.5367]
[1734368833569,256.9697471,219.3,219.19,1.5367]
[1734368833965,2.2798,219.28,219.19,1.5367]
[1734368834172,13.2224871,219.29,219.18,13.2224871]
[1734368834675,2.2799,219.27,219.22,2.2804]
[1734368834872,254.6901471,219.26,219.18,13.2224871]
[1734368835177,254.6901471,219.26,219.24,2.2802]
[1734368835372,254.6901471,219.26,219.18,13.2224871]
[1734368835772,254.6901471,219.26,219.23,2.2803]
[1734368835967,254.6901471,219.25,219.23,2.2803]
[1734368836674,254.6901471,219.25,219.24,2.2802]
[1734368837174,254.6901471,219.28,219.21,13.2224871]
[1734368837975,254.6901471,219.28,219.27,2.2799]
[1734368838165,509.3802942,219.32,219.27,13.2224871]
[1734368838572,509.3802942,219.32,219.21,14.7098871]
[1734368838869,254.6901471,219.32,219.22,2.48]
[1734368839064,2.2796,219.31,219.22,2.48]
[1734368839469,254.6901471,219.29,219.22,2.48]
[1734368839671,254.6901471,219.29,219.28,2.2798]
[1734368840673,38.19745335,219.31,219.3,2.2796]
[1734368842373,2.2792,219.34,219.3,2.2796]
[1734368842581,2.2792,219.34,219.31,2.2794]
[1734368842777,254.6901471,219.36,219.24,13.2224871]
[1734368843076,257.1701471,219.37,219.25,2.48]
[1734368843382,2.2791,219.36,219.31,2.2794]
[1734368844277,2.2791,219.36,219.24,13.2224871]
[1734368844470,2.2791,219.36,219.24,15.7024871]
[1734368844670,257.1701471,219.37,219.24,15.7024871]
[1734368844671,2.2791,219.35,219.24,15.7024871]
[1734368845270,2.2791,219.35,219.3,2.2795]
[1734368845682,254.6901471,219.36,219.24,15.7024871]
[1734368845876,254.6901471,219.36,219.26,5.43822587]
[1734368847276,2.2793,219.34,219.29,2.2797]
[1734368847483,254.6901471,219.34,219.26,5.43822587]
[1734368847688,2.2793,219.33,219.3,2.2796]
[1734368847873,2.2793,219.33,219.26,4.04957757]
[1734368848279,254.6901471,219.34,219.28,2.2798]
[1734368848584,254.6901471,219.34,219.21,15.7024871]
[1734368848780,253.59254044,219.27,219.21,15.7024871]
[1734368849985,253.59254044,219.27,219.26,2.28]
[1734368851086,253.59254044,219.28,219.27,2.2799]
[1734368851589,253.59254044,219.28,219.21,15.7024871]
[1734368852684,253.59254044,219.28,219.26,2.2799]
[1734368853382,253.65921757,219.27,219.21,15.7024871]
[1734368854077,253.65921757,219.27,219.26,2.28]
[1734368854679,253.65921757,219.28,219.21,15.7024871]
[1734368854875,253.65921757,219.28,219.27,2.2799]
[1734368855080,260.25448654,219.28,219.27,2.2799]
[1734368855388,270.11547027,219.28,219.27,2.2799]
[1734368855577,270.11547027,219.28,219.21,15.7024871]
[1734368855779,2.48,219.3,219.21,15.7024871]
[1734368856082,2.48,219.3,219.21,13.2224871]
[1734368856286,2.48,219.3,219.27,2.2799]
[1734368857079,2.48,219.3,219.18,15.7024871]
[1734368857283,13.2224871,219.29,219.15,18.77075401]
[1734368857486,13.2224871,219.26,219.15,5.54826691]
[1734368857685,2.2805,219.22,219.18,2.2808]
[1734368858086,4.0912,219.25,219.18,2.2808]
[1734368858283,4.0912,219.25,219.14,5.54612416]
[1734368858679,2.2805,219.21,219.11,13.2224871]
[1734368859584,2.2805,219.21,219.13,5.45738618]
[1734368859978,2.2805,219.21,219.15,2.2811]
[1734368860288,2.2805,219.21,219.13,5.45738618]
[1734368860490,2.2805,219.22,219.18,2.2808]
[1734368860791,4.0912,219.25,219.13,5.45738618]
[1734368861386,6.3713,219.25,219.2,2.2806]
[1734368861587,4.0912,219.25,219.13,5.45738618]
[1734368862081,2.2804,219.22,219.17,2.2808]
[1734368862286,4.0912,219.25,219.13,5.45738618]
[1734368863290,2.2803,219.24,219.19,2.2807]
[1734368863994,4.0912,219.25,219.19,2.2807]
[1734368864290,13.2224871,219.23,219.13,5.45738618]
[1734368864996,13.2224871,219.23,219.17,2.2809]
[1734368866393,1.6112,219.25,219.19,2.2807]
[1734368866593,1.6112,219.25,219.14,13.2224871]
[1734368866594,2.46,219.24,219.14,13.2224871]
[1734368866898,1.6112,219.25,219.19,2.2807]
[1734368867099,1.6112,219.25,219.17,13.2224871]
[1734368867396,2.46,219.26,219.17,13.2224871]
[1734368868298,2.2798,219.28,219.17,13.2224871]
[1734368868503,2.46,219.27,219.17,13.2224871]
[1734368868797,2.46,219.27,219.23,2.2802]
[1734368869794,2.46,219.27,219.2,13.2224871]
[1734368869995,3.1025,219.31,219.2,15.6824871]
[1734368870402,3.1025,219.31,219.27,2.2798]
[1734368871804,1.4727,219.33,219.2,15.6824871]
[1734368872111,3.752,219.33,219.29,2.2797]
[1734368872412,253.65921757,219.35,219.31,2.2794]
[1734368872605,253.65921757,219.35,219.23,13.2224871]
[1734368872907,253.65921757,219.35,219.26,2.2799]
[1734368873098,2.2791,219.35,219.23,13.2224871]
[1734368874006,2.2791,219.35,219.3,2.2795]
[1734368875211,2.46,219.36,219.23,13.2224871]
[1734368875410,4.739,219.36,219.31,2.2795]
[1734368877115,2.2791,219.35,219.3,2.2796]
[1734368879417,3.0291,219.38,219.26,13.2224871]
[1734368879714,2.46,219.37,219.26,13.2224871]
[1734368879914,4.7389,219.37,219.31,2.2794]
[1734368880116,4.7389,219.37,219.26,13.2224871]
[1734368880313,2.46,219.37,219.26,13.2224871]
[1734368880610,2.46,219.37,219.34,2.2792]
[1734368881017,8.43395143,219.36,219.34,2.2792]
[1734368882918,13.92305143,219.38,219.34,2.2792]
[1734368883113,253.65921757,219.42,219.31,8.43395143]
[1734368883312,8.43395143,219.4,219.33,8.43395143]
[1734368883513,8.43395143,219.4,219.37,2.2789]
[1734368884317,8.43395143,219.4,219.36,2.2789]
[1734368884811,8.43395143,219.4,219.25,7.06175012]
[1734368885007,8.43395143,219.38,219.26,2.46]
[1734368885211,8.43395143,219.38,219.31,8.43395143]
[1734368885410,8.43395143,219.38,219.35,2.2791]
[1734368886019,8.43395143,219.38,219.33,2.2793]
[1734368886414,8.43395143,219.36,219.25,7.06175012]
[1734368886611,8.43395143,219.36,219.28,8.43395143]
[1734368887114,8.43395143,219.36,219.32,2.2793]
[1734368888314,2.2789,219.37,219.32,2.2793]
[1734368888315,8.43395143,219.34,219.32,2.2793]
[1734368888712,8.43395143,219.34,219.3,2.2795]
[1734368890020,8.43395143,219.34,219.27,8.43395143]
[1734368891223,8.43395143,219.34,219.3,2.2795]
[1734368892424,9.99585143,219.36,219.29,8.43395143]
[1734368892619,8.43395143,219.36,219.31,8.43395143]
[1734368893523,8.43395143,219.36,219.29,8.43395143]
[1734368893920,8.43395143,219.36,219.26,2.46]
[1734368893921,8.43395143,219.36,219.34,2.2792]
[1734368894120,8.43395143,219.39,219.31,8.43395143]
[1734368894622,8.43395143,219.37,219.31,8.43395143]
[1734368895220,8.43395143,219.37,219.34,2.2791]
[1734368895625,5.6595,219.41,219.29,2.2796]
[1734368895626,2.2792,219.34,219.29,2.2796]
[1734368895828,8.43395143,219.33,219.27,2.46]
[1734368896526,8.43395143,219.35,219.28,8.43395143]
[1734368896729,8.43395143,219.35,219.3,8.43395143]
[1734368897227,8.43395143,219.35,219.28,2.46]
[1734368897731,8.43395143,219.35,219.29,8.43395143]
[1734368898330,8.43395143,219.33,219.3,2.2795]
[1734368898526,8.43395143,219.33,219.27,8.43395143]
[1734368898734,8.43395143,219.35,219.27,8.43395143]
[1734368898937,2.46,219.37,219.27,8.43395143]
[1734368899135,8.43395143,219.34,219.3,2.2796]
[1734368899736,10.71315143,219.34,219.3,2.2796]
[1734368899932,8.43395143,219.34,219.29,2.2797]
[1734368901136,8.43395143,219.34,219.27,8.43395143]
[1734368902333,2.2791,219.35,219.27,8.43395143]
[1734368902527,8.43395143,219.34,219.27,8.43395143]
[1734368902929,2.279,219.36,219.32,2.2794]
[1734368903230,8.43395143,219.35,219.27,8.43395143]
[1734368903634,2.279,219.36,219.32,2.2793]
[1734368903935,8.43395143,219.35,219.32,2.2793]
[1734368904335,8.43395143,219.35,219.33,2.2793]
[1734368904935,266.832069,219.37,219.33,2.2793]
[1734368905835,266.832069,219.37,219.25,7.17265012]
[1734368905836,8.43395143,219.35,219.25,7.17265012]
[1734368906136,8.43395143,219.33,219.26,8.43395143]
[1734368907127,8.43395143,219.33,219.25,9.63265012]
[1734368907128,8.43395143,219.35,219.28,8.43395143]
[1734368907327,264.553169,219.37,219.3,8.43395143]
[1734368907532,258.39811757,219.37,219.33,2.2792]
[1734368907733,266.832069,219.37,219.33,2.2792]
[1734368908132,253.65921757,219.36,219.33,2.2792]
[1734368909240,253.65921757,219.37,219.35,2.2791]
[1734368909940,262.093169,219.37,219.34,2.2791]
[1734368910338,262.093169,219.37,219.3,10.89395143]
[1734368910642,262.093169,219.37,219.25,7.17265012]
[1734368910643,8.43395143,219.35,219.28,8.43395143]
[1734368911544,8.43395143,219.35,219.32,2.2793]
[1734368911845,8.43395143,219.33,219.27,2.46]
[1734368912143,8.43395143,219.29,219.25,5.56305012]
[1734368913344,262.093169,219.33,219.27,8.43395143]
[1734368913937,8.43395143,219.33,219.27,8.43395143]
[1734368914946,10.89395143,219.35,219.31,2.2794]
[1734368915642,10.89395143,219.35,219.27,8.43395143]
[1734368917238,10.89395143,219.35,219.33,2.2792]
[1734368919349,10.89395143,219.35,219.34,2.2792]
[1734368919540,24.93266078,219.35,219.34,2.2792]
[1734368919738,8.43395143,219.35,219.34,2.2792]
[1734368919937,8.43395143,219.37,219.36,2.279]
[1734368920137,30.77929863,219.37,219.36,2.279]
[1734368920347,30.77929863,219.37,219.31,8.43395143]
[1734368920545,6.61327201,219.36,219.31,8.43395143]
[1734368920741,8.43395143,219.37,219.35,2.279]
[1734368920943,22.34423123,219.38,219.31,8.43395143]
[1734368921144,6.61327201,219.37,219.31,8.43395143]
[1734368921449,9.88385337,219.38,219.37,2.2789]
[1734368921639,16.49712538,219.38,219.37,2.2789]
[1734368922865,22.3433577,219.38,219.37,2.2789]
[1734368923058,276.00257527,219.38,219.37,0.91425108]
[1734368923345,270.15634295,219.38,219.37,0.91425108]
[1734368923544,260.27248958,219.38,219.37,0.91425108]
[1734368923842,253.65921757,219.38,219.37,0.91425108]
[1734368925442,262.093169,219.39,219.37,0.91425108]